bitfinex-derivatives/quotes_BNBF0:USTF0_20250130
["timestamp","ask_amount","ask_price","bid_price","bid_amount"]
[1738246023324,1.09818327,678.79,677.66,0.2573798]
[1738246023525,1.09818327,678.79,677.67,0.2573798]
[1738246023722,1.09818327,678.79,677.68,0.2573798]
[1738246023925,1.09818327,679.01,677.65,0.2573798]
[1738246023926,1.09818327,678.8,677.65,0.2573798]
[1738246027318,1.09818327,678.82,677.65,0.2573798]
[1738246028426,1.09818327,678.82,677.64,0.29514196]
[1738246028627,1.09818327,678.82,677.65,0.25736716]
[1738246030726,2.24212418,679.45,677.65,0.25736716]
[1738246030727,1.09818327,678.84,677.65,0.25736716]
[1738246032426,1.09818327,678.86,677.65,0.25736716]
[1738246033432,1.09818327,678.86,677.64,0.29514196]
[1738246033633,1.09818327,678.86,677.65,0.25735844]
[1738246033930,1.09818327,678.86,677.66,0.29513325]
[1738246034131,1.09818327,678.86,677.67,0.25735844]
[1738246035131,1.09818327,678.86,677.68,0.55246294]
[1738246035330,1.09818327,678.86,677.69,0.2573384]
[1738246035634,1.09818327,678.86,677.7,0.29511583]
[1738246035830,1.09818327,678.93,677.71,0.2573384]
[1738246036030,1.09818327,678.93,677.72,0.29510712]
[1738246036234,1.09818327,678.93,677.73,0.2573384]
[1738246037232,1.09818327,678.93,677.72,0.29510712]
[1738246039132,1.09818327,679.19,677.72,0.29510712]
[1738246042139,1.09818327,679.12,677.72,0.29510712]
[1738246043039,0.27093537,678.98,677.72,0.29510712]
[1738246043636,0.27093617,678.97,677.72,0.29510712]
[1738246043941,1.09818327,679.12,677.72,0.29510712]
[1738246043942,0.27093617,678.96,677.72,0.29510712]
[1738246044140,0.27093617,678.98,677.72,0.29510712]
[1738246044342,0.27093617,678.97,677.72,0.29510712]
[1738246044539,0.27093617,678.98,677.72,0.29510712]
[1738246044742,0.27093617,678.97,677.72,0.29510712]
[1738246044937,1.09818327,678.73,677.72,0.29510712]
[1738246048552,3.43980522,681.07,677.72,0.29510712]
[1738246048553,1.09818327,678.72,677.72,0.29510712]
[1738246048950,1.09818327,678.72,677.73,0.25737512]
[1738246049253,1.09818327,678.72,677.72,0.29510712]
[1738246051152,1.09818327,678.81,677.72,0.29510712]
[1738246051351,1.09818327,678.81,677.73,0.25731829]
[1738246051851,1.09818327,678.81,677.72,0.29510712]
[1738246052051,1.09818327,678.81,677.73,0.25728592]
[1738246052251,1.09818327,678.81,677.72,0.29510712]
[1738246053553,1.09818327,679.45,677.72,0.29510712]
[1738246057357,1.09818327,679.52,677.72,0.29510712]
[1738246060958,1.09818327,679.41,677.72,0.29510712]
[1738246061653,1.09818327,679.41,677.73,0.25730982]
[1738246062061,1.09818327,679.41,677.74,0.25731056]
[1738246062360,1.09818327,679.41,677.75,0.25731056]
[1738246062559,0.27087099,678.98,677.76,0.25731056]
[1738246062756,0.27087099,678.98,677.77,0.25731056]
[1738246062958,0.27087099,678.98,677.78,0.25731056]
[1738246063153,0.27087099,678.98,677.79,0.25731056]
[1738246063356,0.27087099,678.98,677.73,0.25731056]
[1738246063552,1.09818327,679.41,677.72,0.29510712]
[1738246063756,0.27087749,678.98,677.73,0.25734307]
[1738246070164,1.09818327,678.97,677.73,0.25734307]
[1738246070463,0.27087749,678.96,677.73,0.25734307]
[1738246071965,1.09818327,678.97,677.74,0.2573475]
[1738246072265,0.27088195,678.96,677.75,0.2573475]
[1738246072461,0.27088195,678.96,677.76,0.2573475]
[1738246072664,0.27088195,678.95,677.77,0.2573475]
[1738246072866,0.27088195,678.98,677.73,0.2573475]
[1738246073067,0.27088195,678.97,677.74,0.2573475]
[1738246073365,0.27088195,678.96,677.75,0.2573475]
[1738246073568,1.39273841,678.99,677.72,0.29510712]
[1738246073767,0.27089063,678.98,677.73,0.25735614]
[1738246075369,1.09818327,678.97,677.73,0.25735614]
[1738246075563,0.27089063,678.96,677.73,0.25735614]
[1738246077665,0.27089063,678.95,677.73,0.25735614]
[1738246077865,0.27089063,678.94,677.73,0.25735614]
[1738246078068,0.27089063,678.93,677.73,0.25735614]
[1738246078266,0.27089063,678.97,677.73,0.25735614]
[1738246080273,1.09818327,678.98,677.72,0.29510712]
[1738246080469,1.09818327,678.96,677.73,0.25734272]
[1738246080873,0.27087714,678.95,677.73,0.25734272]
[1738246082777,1.09818327,678.96,677.73,0.25734272]
[1738246083483,1.09818327,678.88,677.73,0.25734272]
[1738246084976,1.09818327,678.88,677.74,0.25731074]
[1738246085381,1.09818327,678.88,677.75,0.25731074]
[1738246085684,0.29455514,678.99,677.76,0.25731074]
[1738246085882,0.29455514,678.99,677.77,0.25731074]
[1738246086082,0.29455514,678.99,677.73,0.25731074]
[1738246086282,0.29455514,678.99,677.74,0.25731074]
[1738246086478,0.29455514,678.99,677.73,0.25731074]
[1738246086683,0.29455514,678.99,677.74,0.25731074]
[1738246086877,0.29455514,678.99,677.75,0.25731074]
[1738246087082,0.29455514,678.99,677.73,0.25731074]
[1738246087384,0.29455514,678.99,677.74,0.25731074]
[1738246087581,0.29455514,678.99,677.73,0.25731074]
[1738246087781,0.29455514,678.99,677.75,0.29509406]
[1738246087982,0.29455514,678.99,677.76,0.25731074]
[1738246088384,0.29455514,678.99,677.75,0.29509406]
[1738246088385,0.29455514,678.99,677.77,0.25732548]
[1738246088583,0.29455514,678.99,677.76,0.25732548]
[1738246088786,0.29455514,678.99,677.77,0.25732548]
[1738246088980,0.29455514,678.99,677.78,0.25732548]
[1738246089287,0.29455514,678.99,677.79,0.25732548]
[1738246089482,0.29455514,678.99,677.8,0.25732548]
[1738246089687,0.29455514,678.99,677.81,0.25732548]
[1738246089888,0.29455514,678.99,677.76,0.25732548]
[1738246090189,0.29455514,678.99,677.77,0.25732548]
[1738246090386,0.29455514,678.99,677.78,0.25732548]
[1738246090584,0.29455514,678.99,677.79,0.25732548]
[1738246090782,0.29455514,678.99,677.76,0.25732548]
[1738246091088,0.29455514,678.99,677.77,0.25732548]
[1738246091288,0.29455514,678.99,677.78,0.25732548]
[1738246091587,0.29455514,678.99,677.76,0.25732548]
[1738246091789,0.29455514,678.99,677.77,0.25732548]
[1738246091987,0.29455514,678.99,677.76,0.25732548]
[1738246093489,1.09818327,678.97,677.76,0.25732548]
[1738246093685,1.09818327,678.97,677.76,0.55241518]
[1738246093889,1.09818327,678.97,677.77,0.25732548]
[1738246094994,1.09818327,678.97,677.78,0.55239168]
[1738246095293,1.09818327,678.97,677.79,0.55238733]
[1738246095493,1.09818327,678.97,677.8,0.25731069]
[1738246095993,1.09818327,678.97,677.8,0.55238298]
[1738246096194,1.09818327,678.97,677.81,0.25731069]
[1738246096393,1.09818327,678.92,677.81,0.25731069]
[1738246099300,0.29455514,678.99,677.81,0.25731069]
[1738246106301,1.09818327,679.14,677.81,0.25731069]
[1738246106706,1.09818327,679.14,677.82,0.2572417]
[1738246106902,1.09818327,679.14,677.83,0.2572417]
[1738246107103,1.09818327,679.17,677.84,0.2572417]
[1738246107302,1.09818327,679.17,677.81,0.2572417]
[1738246108400,1.09818327,679.17,677.82,0.25722549]
[1738246108604,1.09818327,679.17,677.83,0.25722549]
[1738246108799,1.09818327,679.17,677.81,0.25722549]
[1738246109006,1.09818327,679.17,677.82,0.25722549]
[1738246109306,1.09818327,679.17,677.83,0.25722549]
[1738246109606,1.09818327,679.17,677.84,0.25722549]
[1738246110004,1.09818327,679.17,677.85,0.25722549]
[1738246110206,1.09818327,679.17,677.81,0.25722549]
[1738246110407,1.09818327,679.32,677.82,0.25722549]
[1738246110706,0.2707567,679.31,677.83,0.25722549]
[1738246110903,0.2707567,679.31,677.81,0.25722549]
[1738246111100,0.2707567,679.31,677.82,0.25722549]
[1738246111401,0.2707567,679.31,677.83,0.25722549]
[1738246111604,1.09818327,679.32,677.8,0.29507229]
[1738246111605,0.27075767,679.3,677.84,0.25722419]
[1738246111804,0.27075767,679.31,677.81,0.25722419]
[1738246112006,0.27075767,679.3,677.82,0.25722419]
[1738246112210,0.27075767,679.31,677.81,0.25722419]
[1738246112507,0.27075767,679.3,677.82,0.25722419]
[1738246112806,0.27075767,679.3,677.8,0.29507229]
[1738246112807,0.27075767,679.29,677.83,0.25722419]
[1738246113008,1.09818327,679.32,677.84,0.25722419]
[1738246113208,0.27075215,679.31,677.81,0.25722419]
[1738246113408,0.27075215,679.31,677.82,0.25722419]
[1738246113609,0.27075215,679.31,677.83,0.25722419]
[1738246113811,0.27075215,679.33,677.81,0.25722419]
[1738246114011,1.09818327,679.34,677.82,0.25722419]
[1738246114211,1.09818327,679.34,677.83,0.25722419]
[1738246114411,1.09818327,679.34,677.84,0.25722419]
[1738246114606,1.09818327,679.34,677.81,0.25722419]
[1738246114907,1.09818327,679.34,677.82,0.25717351]
[1738246115111,1.09818327,679.34,677.81,0.25717351]
[1738246115312,1.09818327,679.34,677.82,0.25717351]
[1738246115513,1.09818327,679.34,677.83,0.25717447]
[1738246115712,1.09818327,679.34,677.81,0.25717447]
[1738246115913,1.09818327,679.34,677.82,0.25717447]
[1738246116112,1.09818327,679.34,677.81,0.25717447]
[1738246116310,1.09818327,679.34,677.82,0.25717447]
[1738246116506,1.09818327,679.34,677.83,0.25717447]
[1738246116712,1.09818327,679.34,677.81,0.25717447]
[1738246116914,1.09818327,679.5,677.82,0.25717447]
[1738246117213,0.27069676,679.49,677.83,0.25717447]
[1738246117413,0.27069676,679.49,677.84,0.25717447]
[1738246117612,0.27069676,679.49,677.81,0.25717447]
[1738246117813,0.27069676,679.49,677.82,0.25717447]
[1738246118013,0.27069676,679.49,677.84,0.29505488]
[1738246118209,0.27069676,679.49,677.85,0.25717447]
[1738246118414,0.27069676,679.49,677.87,0.29504182]
[1738246118615,0.27069676,679.49,677.88,0.25717447]
[1738246119016,0.27069676,679.49,677.9,0.29502876]
[1738246119210,0.27069676,679.54,677.91,0.25717447]
[1738246119413,0.56501783,679.53,677.91,0.25717447]
[1738246119615,0.29432107,679.53,677.9,0.29502876]
[1738246124817,0.27071374,679.52,677.91,0.25718062]
[1738246125121,0.29432973,679.51,677.92,0.29502006]
[1738246125321,0.27073269,679.5,677.93,0.25719951]
[1738246126516,0.2943384,679.49,677.94,0.29501135]
[1738246126720,0.27073269,679.48,677.95,0.25719951]
[1738246126921,0.29434706,679.47,677.96,0.29500265]
[1738246127121,0.27073269,679.46,677.97,0.25719951]
[1738246127323,0.29435572,679.45,677.98,0.29499395]
[1738246127624,0.29435572,679.45,677.99,0.25719951]
[1738246127823,0.29435572,679.45,678.0,0.29498525]
[1738246128024,0.29435572,679.45,678.01,0.25719951]
[1738246128224,0.29435572,679.45,678.02,0.29497654]
[1738246128426,0.29435572,679.45,678.03,0.25719951]
[1738246128725,0.29435572,679.45,678.04,0.29496784]
[1738246131326,0.29435572,679.45,678.05,0.25718832]
[1738246131921,0.29435572,679.45,678.04,0.29496784]
[1738246132126,0.29435572,679.45,678.05,0.25718544]
[1738246134631,0.29435572,679.45,678.06,0.29495914]
[1738246134831,0.29435572,679.45,678.07,0.25718544]
[1738246135027,0.29435572,679.45,678.08,0.29495044]
[1738246135231,0.29435572,679.45,678.09,0.25718544]
[1738246135430,0.29435572,679.45,678.1,0.29494174]
[1738246135627,0.29435572,679.45,678.11,0.25718544]
[1738246136033,0.29435572,679.45,678.12,0.29493305]
[1738246136233,0.29435572,679.45,678.13,0.25718544]
[1738246136436,0.29435572,679.45,678.14,0.29492435]
[1738246138634,0.27069753,679.44,678.15,0.25716449]
[1738246138839,0.27069753,679.44,678.16,0.29491565]
[1738246139134,0.27069753,679.44,678.17,0.25716449]
[1738246140439,0.27069844,679.43,678.18,0.25716536]
[1738246140640,1.09818327,679.38,678.17,0.25716536]
[1738246140837,0.27069844,679.37,678.18,0.25716536]
[1738246141036,0.27069844,679.37,678.16,0.29491565]
[1738246141037,0.27069844,679.37,678.17,0.25716536]
[1738246141237,0.27069844,679.37,678.18,0.25716536]
[1738246141440,0.27069844,679.37,678.17,0.25716536]
[1738246141739,0.27071642,679.36,678.18,0.25718331]
[1738246141939,0.27071642,679.37,678.17,0.25718331]
[1738246142133,0.27071642,679.36,678.18,0.25718331]
[1738246142438,0.27071642,679.36,678.16,0.29491565]
[1738246142439,0.27071642,679.35,678.19,0.25718331]
[1738246142637,0.27071439,679.37,678.17,0.25718331]
[1738246143340,1.09818327,679.38,678.16,0.29491565]
[1738246143634,0.29435572,679.45,678.16,0.29491565]
[1738246143635,1.09818327,679.3,678.16,0.29491565]
[1738246146744,1.09818327,679.33,678.16,0.29491565]
[1738246148841,1.09818327,679.31,678.16,0.29491565]
[1738246151847,1.09818327,679.33,678.16,0.29491565]
[1738246155248,0.29435572,679.45,678.16,0.29491565]
[1738246155249,1.09818327,679.27,678.16,0.29491565]
[1738246157649,1.09818327,679.25,678.16,0.29491565]
[1738246158041,1.09818327,679.25,678.17,0.25720279]
[1738246160149,1.09818327,679.25,678.16,0.29491565]
[1738246160450,1.09818327,679.25,678.17,0.25720194]
[1738246160845,0.29435572,679.45,678.17,0.25720194]
[1738246160846,1.09818327,679.19,678.17,0.25720194]
[1738246163658,1.09818327,679.14,678.17,0.25720194]
[1738246165160,1.09818327,679.14,678.16,0.29491565]
[1738246165357,1.09818327,679.14,678.17,0.25719605]
[1738246167755,1.09818327,679.14,678.16,0.29491565]
[1738246167955,1.09818327,679.14,678.17,0.25717156]
[1738246169658,1.09818327,679.23,678.17,0.25717156]
[1738246172065,1.09818327,679.31,678.16,0.29491565]
[1738246172264,1.09818327,679.31,678.17,0.25715319]
[1738246175365,1.09818327,679.31,678.16,0.29491565]
[1738246175366,1.09818327,679.37,678.16,0.29491565]
[1738246175566,1.09818327,679.37,678.17,0.25711503]
[1738246177068,1.09818327,679.37,678.16,0.29491565]
[1738246177269,1.09818327,679.37,678.17,0.25709948]
[1738246178371,1.09818327,679.36,678.19,1.10145289]
[1738246178566,1.09818327,679.36,678.2,0.25709948]
[1738246180466,1.09818327,679.36,678.21,0.29489391]
[1738246180668,1.09818327,679.36,678.22,0.25709948]
[1738246180869,1.09818327,679.36,678.23,0.29488521]
[1738246181066,1.09818327,679.36,678.24,0.25709948]
[1738246181268,1.09818327,679.36,678.25,0.29487652]
[1738246181565,1.09818327,679.36,678.26,0.25709948]
[1738246181766,0.29435572,679.45,678.27,0.29486782]
[1738246181971,0.29435572,679.45,678.28,0.25709948]
[1738246183472,0.29435572,679.45,678.27,0.29486782]
[1738246191081,0.29435572,679.45,678.28,0.25707925]
[1738246191684,0.29435572,679.45,678.29,0.29485913]
[1738246191883,0.29435572,679.45,678.3,0.25707925]
[1738246192381,0.29435572,679.45,678.29,0.29485913]
[1738246192583,0.29435572,679.45,678.3,0.25707938]
[1738246193484,0.29435572,679.45,678.31,0.29485043]
[1738246193684,0.29435572,679.45,678.32,0.25707938]
[1738246194079,0.29435572,679.45,678.33,0.25706756]
[1738246194284,0.29435572,679.45,678.34,0.25706756]
[1738246194580,0.29435572,679.45,678.35,0.55190061]
[1738246194784,0.29435572,679.45,678.36,0.25706756]
[1738246195786,0.29435572,679.45,678.35,0.29483305]
[1738246195987,0.29435572,679.45,678.36,0.25706408]
[1738246197586,0.29435572,679.45,678.35,0.29483305]
[1738246197788,0.29435572,679.45,678.36,0.25706358]
[1738246204088,1.09818327,679.87,678.36,0.25706358]
[1738246204388,0.29417821,679.86,678.36,0.25706358]
[1738246207486,0.29417821,679.86,678.37,0.25702121]
[1738246207683,0.29417821,679.86,678.36,0.25702121]
[1738246207891,0.29417821,679.86,678.37,0.25702121]
[1738246208089,0.29417821,679.86,678.36,0.25702121]
[1738246208289,0.29417821,679.86,678.37,0.25702121]
[1738246208491,0.29417821,679.86,678.36,0.25702121]
[1738246208691,0.29417821,679.86,678.37,0.25702121]
[1738246208991,0.29417821,679.86,678.38,0.25702121]
[1738246209191,0.29417821,679.86,678.36,0.25702121]
[1738246209391,0.29417821,679.86,678.37,0.25702121]
[1738246209593,0.29417821,679.86,678.36,0.25702121]
[1738246209892,0.27056663,679.85,678.36,0.25702121]
[1738246210991,0.29417821,679.86,678.36,0.25702121]
[1738246211293,0.29417821,679.86,678.37,0.29482435]
[1738246211493,0.29417821,679.86,678.38,0.25702121]
[1738246212088,0.27056273,679.85,678.39,0.29481566]
[1738246212292,0.29417821,679.86,678.4,0.25702121]
[1738246212600,0.27057645,679.85,678.4,0.25702121]
[1738246212894,0.27057645,679.85,678.41,0.29480697]
[1738246213095,0.27057645,679.85,678.42,0.25702121]
[1738246213295,0.27057645,679.85,678.43,0.29479828]
[1738246213594,0.27057645,679.85,678.44,0.25702121]
[1738246214194,1.39236148,679.86,678.43,0.29479828]
[1738246214497,0.27057303,679.85,678.44,0.257041]
[1738246215197,1.09818327,679.81,678.44,0.257041]
[1738246215591,0.27058204,679.8,678.44,0.257041]
[1738246216097,1.09818327,679.81,678.43,0.29479828]
[1738246216294,1.09818327,679.81,678.44,0.25704937]
[1738246216695,0.27057931,679.8,678.44,0.25704937]
[1738246217297,1.09818327,679.78,678.44,0.25704937]
[1738246217895,1.09818327,679.78,678.45,0.25703737]
[1738246218101,1.09818327,679.78,678.46,0.25703737]
[1738246218401,1.09818327,679.78,678.47,0.25703737]
[1738246218596,1.09818327,679.78,678.44,0.25703737]
[1738246219495,1.09818327,679.78,678.43,0.29479828]
[1738246219701,1.09818327,679.78,678.44,0.25701326]
[1738246219898,1.09818327,679.78,678.45,0.29478959]
[1738246220103,1.09818327,679.78,678.46,0.25701326]
[1738246220503,1.09818327,679.78,678.47,0.2947809]
[1738246220700,1.09818327,679.78,678.48,0.25701326]
[1738246221000,1.09818327,679.78,678.49,0.29477221]
[1738246221206,1.39236148,679.86,678.5,0.25701326]
[1738246221405,0.27055815,679.85,678.5,0.25701326]
[1738246223506,1.09818327,679.74,678.5,0.25701326]
[1738246223806,0.27055815,679.73,678.5,0.25701326]
[1738246224101,1.09818327,679.74,678.5,0.25701326]
[1738246224607,1.09818327,679.74,678.49,0.29477221]
[1738246224806,1.09818327,679.74,678.5,0.25703736]
[1738246225708,1.09818327,679.74,678.49,0.29477221]
[1738246226007,1.09818327,679.72,678.49,0.29477221]
[1738246226405,0.27062091,679.71,678.49,0.29477221]
[1738246228107,1.09818327,679.72,678.49,0.29477221]
[1738246228309,0.27062628,679.71,678.49,0.29477221]
[1738246229207,1.09818327,679.53,678.49,0.29477221]
[1738246231505,1.09818327,679.55,678.49,0.29477221]
[1738246235115,1.09818327,679.6,678.49,0.29477221]
[1738246235313,0.27065445,679.59,678.49,0.29477221]
[1738246236915,1.09818327,679.6,678.49,0.29477221]
[1738246237115,0.27065068,679.59,678.49,0.29477221]
[1738246238116,1.09818327,679.57,678.49,0.29477221]
[1738246238415,0.27065068,679.56,678.49,0.29477221]
[1738246238615,1.09818327,679.57,678.49,0.29477221]
[1738246238816,0.27066366,679.56,678.49,0.29477221]
[1738246244017,1.09818327,679.57,678.49,0.29477221]
[1738246244217,0.27069335,679.56,678.49,0.29477221]
[1738246244620,1.36887662,679.56,678.49,0.29477221]
[1738246244821,0.27069335,679.55,678.49,0.29477221]
[1738246246117,1.09818327,679.56,678.49,0.29477221]
[1738246247423,0.27071508,679.55,678.49,0.29477221]
[1738246248029,0.27071508,679.62,678.49,0.29477221]
[1738246248225,0.27071508,679.61,678.49,0.29477221]
[1738246248420,0.27071508,679.62,678.49,0.29477221]
[1738246248727,0.27071508,679.61,678.49,0.29477221]
[1738246248923,0.27071508,679.62,678.49,0.29477221]
[1738246249127,0.27071508,679.61,678.49,0.29477221]
[1738246249328,1.09818327,679.63,678.49,0.29477221]
[1738246249629,0.27072265,679.62,678.49,0.29477221]
[1738246251627,0.27072265,679.68,678.49,0.29477221]
[1738246251824,0.27072265,679.67,678.49,0.29477221]
[1738246252024,0.27072265,679.66,678.49,0.29477221]
[1738246252225,0.27072265,679.68,677.41,1.10145289]
[1738246252425,0.27072265,679.67,677.52,0.29519423]
[1738246252723,0.27072265,679.66,677.53,0.25720491]
[1738246252929,0.27072265,679.68,677.53,0.25720491]
[1738246253124,0.27072265,679.67,677.53,0.25720491]
[1738246253323,0.27072265,679.66,677.53,0.25720491]
[1738246253523,0.27072265,679.65,677.53,0.25720491]
[1738246253823,0.27072265,679.64,677.53,0.25720491]
[1738246254030,0.27072265,679.63,677.53,0.25720491]
[1738246254223,0.27072265,679.68,677.53,0.25720491]
[1738246254424,0.27072265,679.67,677.53,0.25720491]
[1738246254630,1.09818327,679.69,677.52,0.29519423]
[1738246254927,1.09818327,679.6,677.53,0.25722386]
[1738246255129,0.27075729,679.59,677.53,0.25722386]
[1738246256525,1.09818327,679.6,677.52,0.29519423]
[1738246256728,0.27075672,679.59,677.53,0.25722332]
[1738246256925,0.27075672,679.59,677.54,0.25722332]
[1738246257128,0.27075672,679.59,677.55,0.25722332]
[1738246257329,0.27075672,679.59,677.56,0.25722332]
[1738246257530,0.27075672,679.59,677.57,0.25722332]
[1738246257733,0.27075672,679.59,677.53,0.25722332]
[1738246257931,0.27075672,679.59,677.54,0.25722332]
[1738246258233,1.09818327,679.54,677.55,0.25722332]
[1738246258434,0.27075672,679.53,677.56,0.25722332]
[1738246258630,0.27075672,679.53,677.57,0.25722332]
[1738246258832,0.27075672,679.53,677.53,0.25722332]
[1738246259035,0.27075672,679.53,677.54,0.25722332]
[1738246259334,0.27075672,679.53,677.55,0.25722332]
[1738246259635,0.27075672,679.53,677.56,0.25722332]
[1738246259835,0.27075672,679.53,677.57,0.25722332]
[1738246260130,1.09818327,679.54,677.58,0.25721519]
[1738246260333,0.27074857,679.53,677.59,0.29516374]
[1738246260532,0.27074857,679.53,677.6,0.25721519]
[1738246260736,1.09818327,679.38,677.64,1.10145289]
[1738246261038,0.27074857,679.37,677.65,0.25721519]
[1738246261537,0.27074857,679.37,677.67,0.29512889]
[1738246261730,0.27074857,679.37,677.68,0.25721519]
[1738246262937,1.09818327,679.38,677.7,0.29511583]
[1738246263137,0.27075051,679.37,677.71,0.25721707]
[1738246263834,1.09818327,679.42,677.71,0.25721707]
[1738246264538,0.27076136,679.41,677.71,0.25721707]
[1738246267242,1.09818327,679.37,677.71,0.25721707]
[1738246267436,0.27076136,679.36,677.71,0.25721707]
[1738246269343,0.27076136,679.36,677.73,0.29510276]
[1738246269538,0.27076136,679.36,677.74,0.25721707]
[1738246269943,1.09818327,679.37,677.73,0.29510276]
[1738246270143,0.27077347,679.36,677.74,0.2572399]
[1738246272138,0.27077347,679.36,677.76,0.2950897]
[1738246272336,0.27077347,679.36,677.77,0.2572399]
[1738246273440,1.09818327,679.37,677.77,0.2572399]
[1738246274348,1.09818327,679.35,677.77,0.2572399]
[1738246277252,1.09818327,679.45,677.77,0.2572399]
[1738246277550,0.27073744,679.44,677.77,0.2572399]
[1738246280146,0.27073744,679.44,677.79,0.29507664]
[1738246280347,0.5650975,679.44,677.8,0.2572399]
[1738246280553,0.27073744,679.43,677.82,0.29506358]
[1738246280745,0.27073744,679.43,677.83,0.2572399]
[1738246281253,0.27073744,679.43,677.85,0.29505052]
[1738246281254,1.09818327,679.34,677.85,0.29505052]
[1738246281451,1.09818327,679.34,677.86,0.2572399]
[1738246281645,1.09818327,679.34,677.87,0.29504182]
[1738246281849,1.09818327,679.34,677.88,0.2572399]
[1738246282048,1.09818327,679.34,677.89,0.29503311]
[1738246282247,1.09818327,679.34,677.9,0.2572399]
[1738246283753,1.09818327,679.34,677.91,0.25717591]
[1738246283954,1.09818327,679.34,677.92,0.25717591]
[1738246284253,1.09818327,679.34,677.93,0.25717591]
[1738246284454,1.09818327,679.34,677.89,0.29503311]
[1738246284455,0.29436006,679.44,677.9,0.25717591]
[1738246284656,0.29436006,679.44,677.92,0.29502006]
[1738246284854,0.29436006,679.44,677.93,0.25717591]
[1738246285356,0.29436006,679.44,677.95,0.295007]
[1738246285556,0.29436006,679.44,677.96,0.25717591]
[1738246287069,1.09818327,679.4,677.96,0.25717591]
[1738246287957,1.09818327,679.4,677.95,0.295007]
[1738246289660,0.29436006,679.44,677.95,0.295007]
[1738246289661,1.09818327,679.42,677.95,0.295007]
[1738246290355,0.29437305,679.41,677.95,0.295007]
[1738246292656,1.09818327,679.4,677.95,0.295007]
[1738246293762,0.29438172,679.39,677.95,0.295007]
[1738246294961,0.29438172,679.39,677.96,0.2572124]
[1738246296464,0.29438172,679.39,677.97,0.2949983]
[1738246296659,0.27073687,679.38,677.98,0.2572124]
[1738246297363,0.27073677,679.37,677.99,0.25720346]
[1738246297563,0.27073677,679.38,677.98,0.25720346]
[1738246297860,0.27073677,679.38,677.99,0.2949896]
[1738246298064,1.09818327,679.34,678.0,0.25720346]
[1738246298264,1.09818327,679.34,678.01,0.29498089]
[1738246298466,1.09818327,679.34,678.02,0.25720346]
[1738246298662,1.09818327,679.34,678.03,0.29497219]
[1738246299260,1.09818327,679.34,678.04,0.25719949]
[1738246300363,1.09818327,679.34,678.05,0.29496349]
[1738246300567,1.09818327,679.34,678.06,0.25719949]
[1738246300861,1.09818327,679.34,678.07,0.257199]
[1738246301065,1.09818327,679.34,678.06,0.257199]
[1738246301266,1.09818327,679.34,678.07,0.257199]
[1738246301466,1.09818327,679.34,678.06,0.257199]
[1738246301658,1.09818327,679.34,678.07,0.257199]
[1738246301865,0.29438172,679.39,678.08,0.257199]
[1738246301866,1.09818327,679.35,678.08,0.257199]
[1738246302164,1.09818327,679.35,678.09,0.257199]
[1738246302359,1.09818327,679.35,678.06,0.257199]
[1738246302566,1.09818327,679.35,678.1,0.257199]
[1738246302765,0.27073864,679.34,678.11,0.257199]
[1738246302965,1.09818327,679.35,678.06,0.257199]
[1738246303164,1.09818327,679.35,678.07,0.257199]
[1738246303365,1.09818327,679.35,678.08,0.257199]
[1738246303565,1.09818327,679.35,678.09,0.257199]
[1738246303766,1.09818327,679.35,678.1,0.257199]
[1738246304066,1.09818327,679.35,678.11,0.257199]
[1738246304268,1.09818327,679.35,678.06,0.257199]
[1738246304468,1.09818327,679.33,678.05,0.29496349]
[1738246307969,0.29438172,679.39,678.05,0.29496349]
[1738246315370,0.29438172,679.39,678.06,0.2571948]
[1738246315571,0.29438172,679.39,678.07,0.29495479]
[1738246315771,0.29438172,679.39,678.08,0.2571948]
[1738246316070,0.29438172,679.39,678.09,0.29494609]
[1738246322273,1.09818327,679.38,678.09,0.29494609]
[1738246324570,1.09818327,679.36,678.09,0.29494609]
[1738246326975,0.27073139,679.35,678.1,0.2571981]
[1738246327273,1.09818327,679.29,678.1,0.2571981]
[1738246327466,1.09818327,679.29,678.09,0.29494609]
[1738246327669,1.09818327,679.29,678.1,0.25720071]
[1738246329671,1.09818327,679.29,678.11,0.25719321]
[1738246329868,1.09818327,679.29,678.1,0.25719321]
[1738246330172,1.09818327,679.29,678.11,0.25719321]
[1738246330374,1.09818327,679.18,678.1,0.25719321]
[1738246330672,1.09818327,679.18,678.11,0.25719321]
[1738246330872,1.09818327,679.18,678.12,0.25719321]
[1738246331174,1.09818327,679.18,678.13,0.25719321]
[1738246331369,1.09818327,679.18,678.1,0.25719321]
[1738246331574,1.09818327,679.18,678.11,0.25719321]
[1738246331774,1.09818327,679.18,678.1,0.25719321]
[1738246331977,1.09818327,679.18,678.11,0.25719321]
[1738246332173,1.09818327,679.18,678.1,0.25719321]
[1738246332373,1.09818327,679.18,678.11,0.25719321]
[1738246332573,1.09818327,679.18,678.1,0.25719321]
[1738246332874,1.09818327,679.18,678.11,0.5521306]
[1738246333071,1.09818327,679.18,678.12,0.55212626]
[1738246333269,1.09818327,679.18,678.13,0.55212191]
[1738246333475,1.09818327,679.2,678.14,0.25719321]
[1738246333675,1.09818327,679.2,678.14,0.55211756]
[1738246333870,1.09818327,679.2,678.15,0.25719321]
[1738246334074,1.09818327,679.2,678.16,0.29491565]
[1738246334276,1.09818327,679.2,678.17,0.25719321]
[1738246334475,1.09818327,679.2,678.17,0.55210451]